{"text_format":"1","workbook":"xlsx","n_sheets":2,"sheets":["Bon de commande","Paramètres"],"not_rendered":{"charts":0,"images":2,"macros":1,"external_links":0,"defined_names":1,"comments":0,"pivot_tables":0},"unopened":[],"bounds":{"document_bytes":16777216,"sheet_cells":100000,"rows_first":2000,"rows_last":500,"rows_between":2000,"halvings":0,"cell_chars":16384,"cell_head_chars":4096},"cells_cut":0,"cells_raw":0,"read":"whole","date_system":"1904"}

{"sheet":"Bon de commande","index":0,"n_rows":83,"n_cols":16,"rows_kept":83,"cut":false,"hidden":false,"merged":[[9,2,9,3],[2,5,2,6],[3,5,3,6],[24,5,24,6],[29,5,29,6],[28,5,28,6],[11,2,11,3],[13,2,13,3],[17,2,17,3],[26,5,26,6],[20,3,27,3],[20,5,20,6],[24,8,24,12],[21,8,21,12],[20,8,20,12],[28,3,31,3],[31,5,31,6],[30,5,30,6],[31,8,31,12],[30,8,30,12],[29,8,29,12],[22,5,22,6],[23,5,23,6],[22,8,22,12],[23,8,23,12],[27,5,27,6],[25,5,25,6],[35,8,35,12],[2,8,5,15],[73,11,73,14],[17,13,17,15],[9,5,9,7],[11,5,11,7],[15,13,15,14],[9,13,9,14],[21,5,21,6],[28,8,28,12],[5,5,5,6],[7,12,7,14],[49,15,51,15],[72,7,72,10],[27,8,27,12],[26,8,26,12],[40,5,40,6],[41,5,41,6],[43,5,43,6],[41,8,41,12],[43,8,43,12],[42,8,42,12],[76,2,76,15],[77,2,77,7],[77,8,77,15],[40,8,40,12],[44,5,44,6],[44,8,44,12],[42,5,42,6],[40,3,46,3],[73,2,73,4],[72,2,72,4],[55,2,70,15],[45,5,45,6],[46,5,46,6],[46,8,46,12],[45,8,45,12],[73,7,73,10],[82,2,82,4],[82,7,82,10],[82,11,82,14],[78,2,78,7],[78,8,78,15],[79,2,79,7],[81,2,81,4],[81,7,81,10],[39,5,39,6],[38,8,38,12],[39,8,39,12],[38,5,38,6],[13,13,13,14],[36,5,36,6],[36,8,36,12],[37,5,37,6],[37,8,37,12],[32,5,32,6],[33,5,33,6],[34,5,34,6],[35,5,35,6],[32,8,32,12],[33,8,33,12],[34,8,34,12]]}
[]
[]
[null,null,null,null,null,"For Working Technologies",null,null,"BON DE COMMANDE "]
[null,null,null,null,null,"FWT Technologies"]
[]
[null,null,null,null,null,"06 08 89 21 64  )"]
[null,null,"* Mention obligatoires"]
[null,null,null,null,null,null,null,null,null,null,null,"Du :",{"$f":"TODAY()","v":"2020-05-02"}]
[]
[null,null,"Société *",null,":",null,null,null,null,null,null,"Siret *",":"]
[]
[null,null,"Adresse",null,":"]
[]
[null,null,"Code Postal *",null,":",null,null,null,null,null,null,"Tel *",":"]
[]
[null,null,"Ville *",null,":",null,null,null,null,null,null,"Fax",":"]
[]
[null,null,"Nom *",null,":",null,null,null,null,null,null,"E-Mail * ",":"]
[]
[null,null,null,null,"Réf","Désignation ",null,null,null,null,null,null,null,"Quantité","PUHT","Montant HT"]
[null,null,null,"LOGICIELS","AG1A","Logiciel : L'Assistant de Gestion",null,":","Licence annuelle pour un poste",null,null,null,null,null,100,{"$f":"N21*O21","v":0}]
[null,null,null,null,"AG3A","Logiciel : L'Assistant de Gestion",null,":","Licence pour trois années pour un poste",null,null,null,null,null,250,{"$f":"N22*O22","v":0}]
[null,null,null,null,"BP1A","Logiciel : Bilan prévisionnel",null,":","Licence annuelle pour un poste",null,null,null,null,null,120,0]
[null,null,null,null,"BP3A","Logiciel : Bilan prévisionnel",null,":","Licence pour trois années pour un poste",null,null,null,null,null,288,0]
[null,null,null,null,"RSI3M","Logiciel : RSI ",null,":","Licence 3 mois",null,null,null,null,null,39,0]
[null,null,null,null,"RSI1A","Logiciel : RSI ",null,null,"Licence annuelle pour un poste",null,null,null,null,null,110,0]
[null,null,null,null,"PACK1","Logiciel : Pack - Assistant de Gestion - Bilan Prévisionnel - RSI",null,":","Licence annuelle pour un poste",null,null,null,null,null,264,0]
[null,null,null,null,"PACK3","Logiciel : Pack - Assistant de Gestion - Bilan Prévisionnel - RSI",null,":","Licence pour trois années pour un poste",null,null,null,null,null,518,{"$f":"N28*O28","v":0}]
[null,null,null,"FORMATIONS","FAGJS","Formation - Assistant de Gestion - sur site ",null,":","Journée (hors frais de déplacement)",null,null,null,null,null,700,0]
[null,null,null,null,"FAGDJS","Formation - Assistant de Gestion - sur site ",null,":","1/2 Journée (hors frais de déplacement)",null,null,null,null,null,400,0]
[null,null,null,null,"FAGDHD","Formation Flash - Assistant de Gestion - à distance",null,":","1/2 heure",null,null,null,null,null,60,0]
[null,null,null,null,"FAGHD","Formation Flash - Assistant de Gestion - à distance",null,":"," heure",null,null,null,null,null,100,0]
[null,null,null,null,"FBPJS","Formation - Bilan prévisionnel - sur site ",null,":","Journée (hors frais de déplacement)",null,null,null,null,null,700,0]
[null,null,null,null,"FBPJS","Formation - Bilan prévisionnel - sur site ",null,":","1/2 Journée (hors frais de déplacement)",null,null,null,null,null,400,0]
[null,null,null,null,"FBPDHD","Formation Flash - Bilan prévisionnel - à distance",null,":","1/2 heure",null,null,null,null,null,60,0]
[null,null,null,null,"FBPHD","Formation Flash - Bilan prévisionnel - à distance",null,":"," heure",null,null,null,null,null,100,0]
[null,null,null,null,"FEIS","Formation Excel - Programme initiation - sur site",null,":","2 jours (hors frais de déplacement)",null,null,null,null,null,1200,{"$f":"N37*O37","v":0}]
[null,null,null,null,"FEPS","Formation Excel - Programme perfectionnement - sur site",null,":","2 jours (hors frais de déplacement)",null,null,null,null,null,1200,0]
[null,null,null,null,"FEID","Formation Excel - Programme initiation - à distance ",null,":","14 heures",null,null,null,null,null,1200,0]
[null,null,null,null,"FEPD","Formation Excel - Programme perfectionnement - à distance ",null,":","14 heures",null,null,null,null,null,1200,{"$f":"N40*O40","v":0}]
[null,null,null,"PRESTATIONS","AGAPD","Aide au paramétrage - Assistant de Gestion - Prise en main à distance ",null,":","Forfait",null,null,null,null,null,90,0]
[null,null,null,null,"AG5DD","Réalisation 5 dossiers - Assistant de Gestion - Prise en main à distance",null,":","Forfait",null,null,null,null,null,200,0]
[null,null,null,null,"AGAD","Aide au diagnostic - Assistant de Gestion - Prise en main à distance",null,":","heure",null,null,null,null,null,100,0]
[null,null,null,null,"BPAPD","Aide au paramétrage - Bilan prévisionnel - Prise en main à distance ",null,":","Forfait",null,null,null,null,null,90,0]
[null,null,null,null,"RSIAPD","Aide au paramétrage - RSI - Prise en main à distance ",null,":","Forfait",null,null,null,null,null,90,{"$f":"N45*O45","v":0}]
[null,null,null,null,"TADH","Télé-assistance tous logiciels ",null,":","1/2 heure",null,null,null,null,null,60,0]
[null,null,null,null,"TAH","Télé-assistance tous logiciels ",null,":","heure",null,null,null,null,null,100,{"$f":"N47*O47","v":0}]
[null,null,null,null,null,null,null,null,null,null,null,null,null,null,"Total HT",{"$f":"SUM(P21:P47)","v":0}]
[null,null,null,null,null,null,null,null,null,null,null,"Non assujettis à TVA",null,null,"Total TTC",{"$f":"P48","v":0}]
[null,null,null,"Notre équipe est composée de consultants diplomés d'expertise comptable et d'informaticiens."]
[null,null,null,"For Working Technologies est un organisme de formation agréé."]
[null,null,null,"A ce titre, nos prestations sont imputables à votre budget de formation professionnelle."]
[null,null,null,"Pour les frais de déplacement, veuillez nous consulter préalablement."]
[]
[null,null,null,"A renvoyer accompagné de votre virement à l'ordre de For Working Technologies - Laurent DAVID"]
[]
[]
[]
[]
[]
[]
[]
[]
[]
[]
[]
[]
[]
[]
[]
[]
[]
[null,null,"Siège social",null,null,"Enr. organisme formation","Agrément DATADOCK","Contact",null,null,null,"Site",null,null,null,"SIRET"]
[null,null,"90 rue Jean Sarrazin \n69008 - LYON",null,null,"82 69 12702 69","0016867","Contact@ForWorkingTechnologies.fr",null,null,null,"www.forworkingtechnologies.fr",null,null,null,"398 105 437 00048"]
[]
[]
[null,null,"CONDITIONS GENERALES DE VENTE"]
[null,null,"Article 1 - Préambule\nLes présentes conditions générales ont pour objet de définir les conditions dans lesquelles la société Cliente utilise les services et produits fournis par la société For Working Technologies.\n\nArticle 2 - Clauses générales\nLes présentes conditions générales constituent sont les seules clauses du contrat liant les parties eu égard à son objet. L’acquisition d’un service For Working Technologies implique l’adhésion entière et sans réserve du Client aux présentes conditions générales. For Working Technologies se réserve le droit de modifier ses conditions générales à tout moment.\n\nArticle 3 - Détails des produits et services\n3.1 – Les Licences logiciels\nLes logiciels diffusés par For Working Technologies requièrent l'utilisation de Microsoft Excel. For Working Technologies n'est pas responsable des conditions dans lesquelles les licences Microsoft Excel ont étés acquisent par le Client.",null,null,null,null,null,"Article 5 - Conditions de paiement\nLe prix est payable comptant, en totalité au jour de la passation de la commande par l'Acheteur, par virement bancaire.\n\nArticle 6 - Livraison\nLa livraison des Produits interviendra dès l’envoi de la confirmation de commande et se matérialise par la fourniture de la clef d’activation.\nLe Client devra ensuite procéder à l’activation de sa clef sur le Logiciel  et bénéficiera dès cet instant d’une utilisation du Produit pour une durée un ou trois selon l'option choisie.\nLe Client devra s’assurer de disposer d’une connexion internet et le Vendeur ne pourra être tenu responsable des dysfonctionnements éventuels liés à son fournisseur d’accès internet."]
[null,null,"3.2 – Les Prestations de service\nFor Working Technologies propose à ces clients diverses prestations de service.\n\n3.2.1 - Les Prestations de formation\nFor Working Technologies excécute des prestations de formation autour des logiciels diffusés et plus largement sur les logiciels Microsoft Excel, Microsoft Access, Microsoft Project. Ces formations peuvent être réalisés sur site du Client ou à distance via un logiciel de visio conférence. \nL'équipe de For Working Technologies est composée de formateurs experts, d'informaticiens et de consultants diplomés d'expertise comptable.\nFor Working Technologies est enregistrée au Datadock, à ce titre les formations dispensées par For Working Technologies sont éligibles aux dispositifs de la formation continue.\n\n3.2.2 - Les Prestations de paramétrage, d'accompagnement, d'aide au diagnostic.\nCes prestations peuvent être réalisés sur site du Client ou à distance via un logiciel de visio conférence.\n\n3.2.2 – Intervention sur site\nLes interventions sur site génèrent des frais de déplacements calculés aux frais réels.\n\n3.2.3 – Accès à distance\nPour permettre la réalisation du contrat, le Client à l’obligation de mettre à disposition de For Working Technologies un accès à distance.",null,null,null,null,null,"Article 7 - Propriété intellectuelle\nLes logiciels loués restent la propriété exclusive de For Working Technologies et de leurs éditeurs et sont réputés insaisissables. \nLe Client reconnaît sur le logiciel loué ou concédé l’entière propriété de l’éditeur, et se doit de respecter la législation en vigueur. Le Client s’engage formellement à l’utiliser pour son seul usage et sur un seul système. Il est rigoureusement interdit au Client de faire au profit de qui que ce soit des travaux ou modifications sur le logiciel loué ou concédé. De même, il lui est formellement interdit d’en faire une quelconque copie, sauf à titre exclusif de sauvegarde. Le Client respecte et s’engage à faire respecter par ses subordonnés notamment les droits d’auteur reconnus par le Code de la Propriété Intellectuelle.\n\nArticle 8 - Litige et clause attributive de juridiction\nLes présentes conditions générales sont soumises à la loi française. Toute réclamation devra nous parvenir par mail sous 24 heures et par lettre recommandée avec A/R sous 48 heures. Passé ce délai, nous nous réservons le droit de ne plus admettre de réclamation.\nEn cas de litige, la compétence est attribuée aux tribunaux du ressort du Tribunal de Grande Instance de Lyon."]
[null,null,"Article 4 – Tarifs\nL'acquisition d'une licence d'un produit est valable pour une durée d'abonnement d'une année ou de trois années à compter de la date d'achat de la licence.\nLes produits sont fournis aux tarifs en vigueur figurant sur le site, lors de l'enregistrement de la commande par le Vendeur. Les prix sont exprimés en Euros net de taxes.\nCes tarifs sont fermes et non révisables pendant leur période de validité, telle qu'indiqué sur le site du Vendeur."]
[]
[null,null,"Siège social",null,null,"Enr. organisme formation","Agrément DATADOCK","Contact",null,null,null,"Site",null,null,null,"SIRET"]
[null,null,"90 rue Jean Sarrazin \n69008 - LYON",null,null,"82 69 12702 69","0016867","Contact@ForWorkingTechnologies.fr",null,null,null,"www.forworkingtechnologies.fr",null,null,null,"398 105 437 00048"]

{"sheet":"Paramètres","index":1,"n_rows":0,"n_cols":0,"rows_kept":0,"cut":false,"hidden":false,"merged":[]}